bitfinex-derivatives/quotes_SOLF0:USTF0_20251018
["timestamp","ask_amount","ask_price","bid_price","bid_amount"]
[1760810602130,1.66,186.02,185.97,7.62343967]
[1760810602325,3.3377843,186.0,185.96,4.92343967]
[1760810602626,3.3377843,186.0,185.94,4.92343967]
[1760810602627,1.66,185.99,185.94,4.92343967]
[1760810602832,4.9977843,185.97,185.94,4.92343967]
[1760810603924,3.3377843,185.97,185.94,4.92343967]
[1760810604229,1.66,185.96,185.92,4.92343967]
[1760810604430,3.3377843,185.97,185.92,4.92343967]
[1760810604733,1.66,185.95,185.92,4.92343967]
[1760810605140,4.8387,185.96,185.93,7.62343967]
[1760810606629,6.4987,185.96,185.93,7.62343967]
[1760810608332,6.4987,185.96,185.93,4.92343967]
[1760810609339,8.1767843,185.94,185.91,4.92343967]
[1760810609532,1.66,185.93,185.91,4.92343967]
[1760810611229,1.66,185.93,185.9,4.92343967]
[1760810611436,1.66,185.93,185.9,7.62343967]
[1760810612635,9.8367843,185.94,185.9,7.62343967]
[1760810613439,1.66,185.93,185.9,7.62343967]
[1760810613738,8.1767843,185.94,185.9,7.62343967]
[1760810613934,9.8367843,185.94,185.9,7.62343967]
[1760810614334,9.8367843,185.94,185.91,4.92343967]
[1760810614534,9.8367843,185.94,185.91,2.7]
[1760810615339,9.8367843,185.94,185.9,4.92343967]
[1760810615340,6.4995,185.93,185.9,4.92343967]
[1760810615540,6.4995,185.93,185.89,4.92343967]
[1760810615734,6.4995,185.93,185.89,7.62343967]
[1760810616035,6.4995,185.93,185.9,2.7]
[1760810616235,4.8395,185.93,185.89,4.92343967]
[1760810616641,4.8395,185.93,185.9,2.7]
[1760810617237,4.8395,185.93,185.9,7.62343967]
[1760810617438,6.4995,185.93,185.9,2.7]
[1760810619342,4.8395,185.93,185.9,2.7]
[1760810620342,6.4995,185.93,185.9,2.7]
[1760810621446,4.84,185.91,185.89,4.92343967]
[1760810621746,4.84,185.91,185.82,4.842]
[1760810621747,6.5,185.91,185.87,7.62343967]
[1760810621947,4.9977843,185.91,185.87,7.62343967]
[1760810622147,1.66,185.9,185.87,4.92343967]
[1760810622338,3.3377843,185.91,185.85,4.92343967]
[1760810622541,1.66,185.9,185.85,4.92343967]
[1760810622946,4.9977843,185.88,185.84,7.62343967]
[1760810623146,3.3377843,185.88,185.84,7.62343967]
[1760810623351,4.9977843,185.88,185.85,2.7]
[1760810623947,4.841,185.87,185.85,2.7]
[1760810624948,6.501,185.87,185.83,7.62343967]
[1760810625346,4.841,185.87,185.84,2.7]
[1760810626441,6.511,185.87,185.84,2.7]
[1760810626650,4.841,185.87,185.84,2.72]
[1760810627350,4.8404,185.89,185.84,2.72]
[1760810627551,4.8404,185.89,185.83,4.92343967]
[1760810627751,4.8404,185.89,185.85,2.72]
[1760810627940,4.8404,185.89,185.84,2.72]
[1760810628144,4.8404,185.89,185.83,4.92343967]
[1760810628450,5.0077843,185.9,185.83,4.92343967]
[1760810628451,6.5107,185.88,185.85,2.72]
[1760810628746,4.8407,185.88,185.83,7.64343967]
[1760810629050,1.67,185.87,185.84,2.72]
[1760810630451,6.511,185.87,185.84,2.72]
[1760810630650,4.841,185.87,185.83,4.92343967]
[1760810630852,4.841,185.87,185.85,2.72]
[1760810631851,4.841,185.87,185.83,4.92343967]
[1760810631852,6.5103,185.9,185.84,2.72]
[1760810632047,6.5103,185.9,185.85,2.72]
[1760810632245,47.9777843,185.92,185.85,2.72]
[1760810632246,4.8405,185.89,185.85,4.92343967]
[1760810632448,1.67,185.88,185.82,7.64343967]
[1760810633147,4.841,185.87,185.82,7.64343967]
[1760810633345,1.67,185.86,185.82,4.92343967]
[1760810633652,6.511,185.87,185.81,4.92343967]
[1760810636453,19.40537695,185.89,185.81,4.92343967]
[1760810636454,1.67,185.85,185.82,2.72]
[1760810636649,5.0077843,185.83,185.76,2.72]
[1760810636954,4.8423,185.82,185.76,2.72]
[1760810642158,3.3377843,185.86,185.69,9.28458623]
[1760810642159,1.67,185.78,185.69,9.28458623]
[1760810642350,1.67,185.78,185.69,2.72]
[1760810642351,3.3377843,185.77,185.69,2.72]
[1760810643054,4.8442,185.75,185.69,2.72]
[1760810643254,1.67,185.76,185.69,2.72]
[1760810643652,1.61,185.76,185.69,2.72]
[1760810643850,3.3377843,185.74,185.66,2.72]
[1760810644954,4.8449,185.72,185.66,2.72]
[1760810645659,8.1820843,185.74,185.66,2.72]
[1760810645964,1.55,185.73,185.66,2.72]
[1760810646261,4.8448,185.72,185.66,2.72]
[1760810647360,1.55,185.69,185.61,2.67]
[1760810649652,1.55,185.67,185.61,2.67]
[1760810650560,8.1835843,185.68,185.61,2.67]
[1760810651056,6.3953,185.7,185.61,2.67]
[1760810651252,6.3953,185.7,185.62,2.67]
[1760810653255,4.8457,185.69,185.62,2.67]
[1760810653858,4.846,185.68,185.62,2.67]
[1760810654363,1.55,185.67,185.62,2.67]
[1760810654564,6.396,185.68,185.62,2.67]
[1760810655259,9.7337843,185.68,185.59,7.5181]
[1760810656260,3.3377843,185.68,185.59,2.67]
[1760810656455,1.55,185.67,185.59,2.67]
[1760810657459,4.8465,185.66,185.59,2.67]
[1760810657653,1.55,185.67,185.59,2.67]
[1760810658563,6.3953,185.7,185.61,2.76]
[1760810659360,4.8457,185.69,185.61,2.76]
[1760810660067,92.49897424,185.77,185.63,2.76]
[1760810660255,4.8877843,185.73,185.63,2.76]
[1760810661168,4.8877843,185.73,185.64,2.76]
[1760810661661,1.55,185.73,185.64,2.76]
[1760810662064,6.3946,185.73,185.64,2.76]
[1760810663468,4.8439,185.76,185.67,2.76]
[1760810663660,94.04897424,185.77,185.69,3.3377843]
[1760810663862,1.55,185.76,185.66,6.0977843]
[1760810664065,1.55,185.75,185.66,6.0977843]
[1760810664469,1.55,185.75,185.67,2.76]
[1760810665767,4.8439,185.76,185.69,2.76]
[1760810665968,6.3939,185.76,185.69,6.0977843]
[1760810666165,6.3939,185.76,185.69,2.76]
[1760810668368,1.55,185.76,185.69,2.76]
[1760810668567,92.49897424,185.77,185.69,2.76]
[1760810669968,92.49897424,185.77,185.7,4.8451]
[1760810671473,92.49897424,185.77,185.71,2.76]
[1760810671872,8.1810843,185.78,185.71,2.76]
[1760810672672,8.1810843,185.78,185.71,7.6049]
[1760810672978,1.55,185.79,185.71,2.76]
[1760810673169,1.55,185.79,185.72,4.8446]
[1760810673366,1.55,185.78,185.71,2.76]
[1760810673771,4.8877843,185.78,185.71,2.76]
[1760810674166,1.55,185.74,185.68,4.8457]
[1760810674572,1.55,185.74,185.67,2.76]
[1760810675471,3.3377843,185.75,185.63,6.56458623]
[1760810675472,1.55,185.71,185.63,6.56458623]
[1760810675672,1.55,185.71,185.64,2.76]
[1760810675868,1.55,185.71,185.64,7.6068]
[1760810676477,1.55,185.68,185.64,7.6068]
[1760810676674,1.55,185.68,185.61,7.6074]
[1760810677275,1.55,185.68,185.62,4.8472]
[1760810677874,1.55,185.72,185.66,2.76]
[1760810678676,3.3377843,185.73,185.66,2.76]
[1760810678878,4.8877843,185.76,185.66,9.32458623]
[1760810679574,1.55,185.75,185.66,9.32458623]
[1760810680373,1.55,185.75,185.67,6.56458623]
[1760810681077,6.3941,185.75,185.67,11.41048623]
[1760810681273,1.55,185.75,185.68,9.32458623]
[1760810681475,3.3377843,185.76,185.7,4.8453]
[1760810681674,4.8436,185.77,185.71,2.76]
[1760810681879,1.55,185.78,185.71,2.76]
[1760810682276,1.55,185.78,185.71,7.6048]
[1760810682477,1.55,185.78,185.71,14.16938623]
[1760810684975,3.3377843,185.79,185.72,2.76]
[1760810690383,3.3377843,185.79,185.72,9.32458623]
[1760810690584,1.55,185.81,185.74,2.8]
[1760810691181,1.55,185.81,185.74,9.36458623]
[1760810692175,1.55,185.81,185.74,2.8]
[1760810693084,4.8777843,185.78,185.71,2.8]
[1760810693383,4.8777843,185.78,185.71,9.36458623]
[1760810696585,4.8777843,185.78,185.74,4.9581475]
[1760810696778,4.8777843,185.8,185.74,4.9581475]
[1760810696984,1.54,185.8,185.77,2.8]
[1760810697177,93.84730183,185.84,185.77,7.7581475]
[1760810697377,97.18508613,185.84,185.77,7.7581475]
[1760810697682,93.84730183,185.84,185.78,4.9581475]
[1760810697882,93.84730183,185.84,185.79,7.7581475]
[1760810698082,1.54,185.83,185.79,7.7581475]
[1760810698274,1.54,185.83,185.79,2.8]
[1760810698874,93.84730183,185.84,185.78,4.9581475]
[1760810701890,98.68910183,185.84,185.77,4.9581475]
[1760810702088,3.3377843,185.79,185.76,4.9581475]
[1760810702384,3.3377843,185.79,185.75,4.9581475]
[1760810703378,1.54,185.78,185.75,4.9581475]
[1760810703985,1.54,185.77,185.74,4.9581475]
[1760810704587,1.54,185.75,185.73,4.9581475]
[1760810706485,1.55,185.75,185.72,4.96857954]
[1760810706685,51.3955686,185.76,185.65,2.66]
[1760810706686,3.3377843,185.72,185.66,6.56458623]
[1760810706885,3.3377843,185.69,185.66,9.22458623]
[1760810707086,3.3377843,185.69,185.66,2.66]
[1760810709089,1.55,185.68,185.64,2.66]
[1760810710395,1.55,185.65,185.61,9.22458623]
[1760810710791,1.55,185.65,185.61,2.66]
[1760810711583,3.3377843,185.66,185.61,2.66]
[1760810711787,3.3377843,185.66,185.6,6.56458623]
[1760810711984,3.3377843,185.69,185.62,6.56458623]
[1760810712190,3.3377843,185.69,185.61,4.8474]
[1760810712191,3.3377843,185.69,185.63,9.22458623]
[1760810713091,3.3377843,185.72,185.66,9.22458623]
[1760810713293,1.55,185.74,185.66,6.56458623]
[1760810713495,1.55,185.74,185.67,2.66]
[1760810713694,3.3377843,185.75,185.67,2.66]
[1760810713996,3.3377843,185.75,185.67,9.22458623]
[1760810714895,4.8877843,185.75,185.67,9.22458623]
[1760810715097,3.3377843,185.72,185.65,6.56458623]
[1760810715288,4.8877843,185.72,185.63,9.22458623]
[1760810715494,1.55,185.72,185.63,9.22458623]
[1760810715694,1.55,185.72,185.64,6.56458623]
[1760810716393,1.55,185.68,185.61,6.56458623]
[1760810716595,1.55,185.68,185.6,9.40458623]
[1760810717192,1.55,185.68,185.6,2.84]
[1760810717393,3.3377843,185.66,185.6,2.84]
[1760810717593,1.55,185.65,185.58,6.56458623]
[1760810718995,6.3968,185.65,185.58,6.56458623]
[1760810719401,6.3968,185.65,185.57,6.56458623]
[1760810720497,6.3968,185.65,185.58,2.84]
[1760810720994,3.3377843,185.66,185.58,2.84]
[1760810721198,3.3377843,185.66,185.59,6.56458623]
[1760810721398,3.3377843,185.66,185.6,2.84]
[1760810721601,9.7333843,185.69,185.6,2.84]
[1760810726608,3.3377843,185.66,185.6,2.84]
[1760810726808,1.55,185.65,185.56,7.6887]
[1760810728007,6.3967,185.65,185.56,7.6887]
[1760810729007,4.8877843,185.69,185.58,2.84]
[1760810729408,1.55,185.68,185.58,2.84]
[1760810729603,3.3377843,185.69,185.58,2.84]
[1760810730115,6.3965,185.66,185.58,2.84]
[1760810730315,1.55,185.66,185.58,2.84]
[1760810732013,4.8467,185.65,185.58,2.84]
[1760810732415,1.55,185.66,185.59,2.84]
[1760810732814,6.3965,185.66,185.59,2.84]
[1760810734214,4.8467,185.65,185.59,2.84]
[1760810734514,1.55,185.68,185.56,7.6888]
[1760810734708,1.55,185.65,185.56,7.6888]
[1760810734908,3.3377843,185.66,185.56,7.6888]
[1760810734909,1.55,185.64,185.56,7.6888]
[1760810736114,3.3377843,185.63,185.52,2.84]
[1760810736317,1.55,185.62,185.52,2.84]
[1760810736510,3.3377843,185.63,185.52,2.84]
[1760810737510,1.55,185.59,185.52,2.84]
[1760810739312,6.3991,185.56,185.48,2.84]
[1760810740113,1.55,185.56,185.48,7.6909]
[1760810740614,9.7357843,185.6,185.49,7.6906]
[1760810740815,9.7357843,185.6,185.47,2.84]
[1760810741313,9.7357843,185.6,185.46,3.3377843]
[1760810741314,4.8484,185.59,185.51,2.84]
[1760810741913,4.8477,185.61,185.49,3.3377843]
[1760810742118,1.55,185.63,185.5,2.84]
[1760810742414,4.8475,185.62,185.53,4.8495]
[1760810742619,4.8475,185.62,185.54,2.84]
[1760810745223,1.55,185.63,185.55,2.84]
[1760810747718,1.55,185.63,185.55,7.689]
[1760810747918,1.55,185.63,185.56,2.74]
[1760810757126,6.3973,185.63,185.56,2.74]
[1760810758621,3.3377843,185.67,185.52,2.74]
[1760810758826,1.55,185.62,185.52,2.74]
[1760810759935,4.8478,185.61,185.54,2.74]
[1760810760535,6.398,185.6,185.54,2.74]
[1760810763436,1.55,185.6,185.54,2.74]
[1760810764635,4.8475,185.62,185.53,11.41408623]
[1760810764636,4.8469,185.64,185.55,2.74]
[1760810764838,3.3377843,185.7,185.58,2.74]
[1760810765031,1.55,185.69,185.58,2.74]
[1760810765336,1.55,185.69,185.59,2.74]
[1760810765532,4.8459,185.68,185.59,9.30458623]
[1760810765735,4.8459,185.68,185.6,2.74]
[1760810766533,4.8459,185.68,185.61,4.97130566]
[1760810767033,1.55,185.66,185.6,4.97130566]
[1760810767338,1.55,185.63,185.57,4.97130566]
[1760810767928,4.8475,185.62,185.57,4.97130566]
[1760810768230,1.55,185.61,185.57,7.81130566]
[1760810769230,4.8475,185.62,185.58,2.84]
[1760810769438,8.1847843,185.64,185.59,2.84]
[1760810769637,6.397,185.64,185.58,7.81130566]
[1760810770838,4.8464,185.66,185.6,7.81130566]
[1760810771141,3.3377843,185.67,185.6,7.81130566]
[1760810771929,4.8467,185.65,185.6,4.97130566]
[1760810772134,3.3377843,185.67,185.61,2.84]
[1760810773043,1.55,185.68,185.62,4.97130566]
[1760810773340,3.3377843,185.7,185.62,4.97130566]
[1760810773540,1.55,185.66,185.6,4.97130566]
[1760810773743,1.55,185.66,185.59,7.81130566]
[1760810774942,4.8467,185.65,185.59,7.81130566]
[1760810778139,4.8467,185.65,185.6,4.97130566]
[1760810778345,4.8467,185.65,185.62,2.85]
[1760810778643,4.8462,185.67,185.61,7.82130566]
[1760810779842,4.8877843,185.7,185.61,7.82130566]
[1760810780035,4.8457,185.69,185.62,4.97130566]
[1760810780239,4.8457,185.69,185.63,4.97130566]
[1760810780946,4.8457,185.69,185.63,7.82130566]
[1760810781146,4.8457,185.69,185.63,2.85]
[1760810782244,3.3377843,185.72,185.62,4.97130566]
[1760810782453,1.55,185.68,185.61,4.97130566]
[1760810782951,1.55,185.68,185.6,4.97130566]
[1760810784050,4.8465,185.66,185.6,4.97130566]
[1760810785250,4.8465,185.66,185.61,4.97130566]
[1760810785449,6.3965,185.66,185.62,2.85]
[1760810786352,6.3965,185.66,185.62,7.82130566]
[1760810789555,6.3965,185.66,185.62,4.97130566]
[1760810789756,6.3965,185.66,185.62,7.82130566]
[1760810790756,4.8467,185.65,185.62,2.85]
[1760810790950,6.3967,185.65,185.62,2.85]
[1760810792856,14.68733222,185.74,185.61,4.97130566]
[1760810792857,3.3377843,185.66,185.61,4.97130566]
[1760810793057,3.3377843,185.63,185.58,4.97130566]
[1760810793267,1.55,185.62,185.58,4.97130566]
[1760810793563,3.3377843,185.63,185.58,4.97130566]
[1760810793756,1.55,185.62,185.58,4.97130566]
[1760810793959,4.8478,185.61,185.58,4.97130566]
[1760810794164,6.3978,185.61,185.58,4.97130566]
[1760810795164,6.398,185.6,185.58,4.97130566]
[1760810797267,6.398,185.6,185.57,7.82130566]
[1760810799167,4.8475,185.62,185.6,2.85]
[1760810799367,48.0577843,185.67,185.6,4.97130566]
[1760810799368,1.55,185.66,185.6,4.97130566]
[1760810801065,4.8469,185.64,185.61,7.82130566]
[1760810801664,4.8472,185.63,185.61,2.85]
[1760810804171,4.8472,185.63,185.6,4.97130566]
[1760810804370,4.8472,185.63,185.6,7.82130566]
[1760810808166,4.8472,185.63,185.6,4.97130566]
[1760810808370,4.8472,185.63,185.61,2.78]
[1760810808975,4.8472,185.63,185.61,7.75130566]
[1760810809574,4.8467,185.65,185.62,4.97130566]
[1760810809770,1.55,185.7,185.64,7.75130566]
[1760810809977,1.55,185.7,185.62,4.97130566]
[1760810809978,1.55,185.69,185.62,4.97130566]
[1760810810276,3.3377843,185.7,185.61,4.97130566]
[1760810810665,1.55,185.69,185.61,4.97130566]
[1760810810867,6.3967,185.65,185.61,7.75130566]
[1760810813467,6.3967,185.65,185.62,2.78]
[1760810813876,4.8467,185.65,185.63,2.78]
[1760810816781,6.3967,185.65,185.62,4.97130566]
[1760810817380,6.3967,185.65,185.62,7.75130566]
[1760810818579,6.3967,185.65,185.62,4.97130566]
[1760810818776,92.6670762,185.71,185.62,4.97130566]
[1760810818777,1.55,185.63,185.62,4.97130566]
[1760810818976,1.55,185.63,185.61,4.97130566]
[1760810821076,4.8469,185.64,185.62,2.78]
[1760810821677,6.3964,185.66,185.62,2.78]
[1760810821877,6.3964,185.66,185.63,2.78]
[1760810822173,4.8464,185.66,185.64,2.78]
[1760810822373,6.3964,185.66,185.62,7.75130566]
[1760810822579,4.8467,185.65,185.62,7.75130566]
[1760810822780,1.55,185.64,185.61,4.97130566]
[1760810822975,48.0577843,185.67,185.61,4.97130566]
[1760810823476,1.55,185.66,185.61,4.97130566]
[1760810824181,48.0577843,185.67,185.61,4.97130566]
[1760810824582,6.3972,185.63,185.61,4.97130566]
[1760810824781,1.55,185.62,185.61,4.97130566]
[1760810824978,6.3976,185.61,185.59,5.66e-06]
[1760810825176,1.55,185.62,185.55,9.34458623]
[1760810825777,4.8486,185.58,185.55,9.34458623]
[1760810825972,4.8486,185.58,185.56,2.78]
[1760810827177,4.8486,185.58,185.53,6.56458623]
[1760810827383,4.8486,185.58,185.54,2.85]
[1760810827384,1.55,185.58,185.54,2.85]
[1760810827583,1.55,185.57,185.51,6.56458623]
[1760810827785,1.55,185.57,185.5,9.41458623]
[1760810827981,46.27,185.57,185.5,9.41458623]
[1760810828981,4.8496,185.54,185.5,6.56458623]
[1760810829177,4.8496,185.54,185.51,2.85]
[1760810829587,4.8496,185.54,185.52,2.85]
[1760810831688,4.8496,185.54,185.48,2.85]
[1760810833391,4.8499,185.53,185.46,2.85]
[1760810835594,3.3377843,185.6,185.48,2.85]
[1760810835995,1.55,185.59,185.48,9.41458623]
[1760810836192,1.55,185.59,185.49,2.85]
[1760810836493,48.0577843,185.6,185.49,2.85]
[1760810836687,3.3377843,185.57,185.49,2.85]
[1760810836894,1.55,185.56,185.49,2.85]
[1760810837388,4.8496,185.54,185.46,2.74]
[1760810838089,4.8499,185.53,185.46,2.74]
[1760810843903,4.8877843,185.61,185.49,2.74]
[1760810844100,1.55,185.6,185.49,2.74]
[1760810844399,1.55,185.57,185.49,2.74]
[1760810845201,4.8493,185.55,185.49,2.74]
[1760810845794,6.3988,185.57,185.49,2.74]
[1760810848303,4.8491,185.56,185.49,2.74]
[1760810854807,1.55,185.54,185.46,2.74]
[1760810856012,6.3996,185.54,185.46,2.74]
[1760810856616,4.8499,185.53,185.46,2.74]
[1760810858417,4.8499,185.53,185.47,2.74]
[1760810860116,4.8499,185.53,185.47,7.5911]
[1760810860516,1.55,185.54,185.44,6.56458623]
[1760810860517,1.55,185.48,185.44,6.56458623]
[1760810860819,1.55,185.5,185.42,2.74]
[1760810862112,1.55,185.48,185.42,2.74]
[1760810862912,6.4011,185.48,185.42,2.74]
[1760810865914,1.55,185.45,185.4,6.56458623]
[1760810866115,1.55,185.45,185.38,10.24292042]
[1760810867012,1.55,185.45,185.38,15.09642042]
[1760810867208,1.55,185.45,185.39,6.56458623]
[1760810867820,1.55,185.45,185.4,2.66]
[1760810868013,1.55,185.45,185.39,9.22458623]
[1760810868519,6.402,185.45,185.39,9.22458623]
[1760810869717,1.56,185.47,185.38,6.56458623]
[1760810870021,1.56,185.44,185.37,6.56458623]
[1760810870224,1.56,185.44,185.36,9.22458623]
[1760810871020,6.4122,185.44,185.37,2.66]
[1760810873422,6.4125,185.43,185.37,2.66]
[1760810874821,4.8528,185.42,185.37,2.66]
[1760810875228,3.3377843,185.45,185.34,2.66]
[1760810875430,1.56,185.44,185.34,2.66]
[1760810875726,1.56,185.41,185.34,2.66]
[1760810877128,4.8533,185.4,185.34,2.66]
[1760810878731,4.8526,185.42,185.34,2.66]
[1760810879628,4.853,185.41,185.34,2.66]
[1760810879928,6.413,185.41,185.34,2.66]
[1760810881628,3.3377843,185.46,185.35,2.66]
[1760810881629,4.8524,185.43,185.35,2.66]
[1760810882929,1.56,185.44,185.36,4.854]
[1760810883124,1.56,185.44,185.37,2.66]
[1760810884919,1.56,185.44,185.37,7.5137]
[1760810885631,1.56,185.44,185.38,2.66]
[1760810890024,1.55,185.43,185.35,11.41888623]
[1760810890228,1.55,185.43,185.35,7.6543]
[1760810890428,3.3377843,185.46,185.35,7.6543]
[1760810890631,1.55,185.45,185.35,7.6543]
[1760810890831,3.3377843,185.46,185.35,7.6543]
[1760810891034,1.55,185.45,185.35,7.6543]
[1760810891231,3.3377843,185.46,185.35,7.6543]
[1760810891433,1.55,185.45,185.35,7.6543]
[1760810891733,3.3377843,185.46,185.35,7.6543]
[1760810891927,4.8525,185.43,185.35,7.6543]
[1760810892435,4.8525,185.43,185.36,2.8]
[1760810892831,4.8525,185.43,185.37,2.8]
[1760810893636,3.3377843,185.46,185.34,7.6546]
[1760810893834,1.55,185.45,185.34,7.6546]
[1760810894229,4.8524,185.43,185.35,2.8]
[1760810894429,1.55,185.42,185.35,2.8]
[1760810895236,4.853,185.41,185.35,2.8]
[1760810899237,4.853,185.41,185.36,2.76]
[1760810899434,4.853,185.41,185.35,6.56458623]
[1760810899741,4.853,185.41,185.36,2.76]
[1760810899938,4.853,185.41,185.35,6.56458623]
[1760810900236,4.853,185.41,185.36,2.76]
[1760810900436,4.853,185.41,185.35,2.76]
[1760810901246,4.853,185.41,185.35,11.41888623]
[1760810901545,6.4025,185.43,185.36,2.76]
[1760810902145,6.4025,185.43,185.36,7.614]
[1760810902342,6.4025,185.43,185.37,2.76]
[1760810903248,6.4025,185.43,185.37,9.32458623]
[1760810903449,6.4025,185.43,185.37,11.41838623]
[1760810904138,6.4025,185.43,185.38,9.32458623]
[1760810904340,6.4025,185.43,185.39,2.76]
[1760810904742,1.55,185.46,185.4,2.76]
[1760810904941,3.3377843,185.5,185.4,2.76]
[1760810905149,1.55,185.49,185.39,6.56458623]
[1760810905452,3.3377843,185.5,185.39,6.56458623]
[1760810905643,1.55,185.49,185.39,6.56458623]
[1760810905848,3.3377843,185.5,185.39,6.56458623]
[1760810906050,4.8517,185.46,185.39,6.56458623]
[1760810906347,1.55,185.45,185.39,6.56458623]
[1760810906648,1.55,185.45,185.39,9.32458623]
[1760810907750,1.55,185.45,185.39,12.66237053]
[1760810907952,1.55,185.45,185.39,17.51557053]
[1760810908152,1.55,185.45,185.41,2.76]
[1760810908546,1.55,185.45,185.4,6.56458623]
[1760810908742,4.8517,185.46,185.41,2.76]
[1760810909354,1.55,185.45,185.41,2.76]
[1760810911849,4.8517,185.46,185.4,6.56458623]
[1760810912050,1.55,185.45,185.4,6.56458623]
[1760810912353,6.4017,185.46,185.4,6.56458623]
[1760810912556,4.8519,185.45,185.39,6.56458623]
[1760810912853,6.4019,185.45,185.39,9.32458623]
[1760810921154,1.55,185.44,185.4,6.56458623]
[1760810921355,4.8519,185.45,185.41,2.76]
[1760810921562,6.4019,185.45,185.4,6.56458623]
[1760810922056,6.4019,185.45,185.41,2.76]
[1760810922259,6.4019,185.45,185.42,2.76]
[1760810922659,6.4019,185.45,185.41,6.56458623]
[1760810922860,6.4019,185.45,185.43,2.76]
[1760810923057,1.55,185.47,185.42,6.56458623]
[1760810923461,1.55,185.47,185.44,2.76]
[1760810923663,1.55,185.47,185.43,6.56458623]
[1760810923854,1.55,185.47,185.44,2.76]
[1760810925359,1.55,185.47,185.43,6.56458623]
[1760810925560,1.55,185.47,185.44,2.76]
[1760810925959,4.8513,185.48,185.44,2.76]
[1760810926164,6.4013,185.48,185.44,2.76]
[1760810926367,6.4013,185.48,185.44,2.78]
[1760810926664,1.55,185.47,185.44,2.78]
[1760810926855,4.8513,185.48,185.44,2.78]
[1760810927067,6.4013,185.48,185.44,2.78]
[1760810927269,6.4013,185.48,185.43,6.56458623]
[1760810927869,6.4013,185.48,185.44,2.78]
[1760810928067,6.4013,185.48,185.43,6.56458623]
[1760810928273,1.55,185.47,185.44,2.78]
[1760810930272,1.55,185.47,185.43,6.56458623]
[1760810930775,4.8506,185.5,185.44,2.78]
[1760810931976,4.8506,185.5,185.43,6.56458623]
[1760810932277,6.4006,185.5,185.44,2.78]
[1760810933783,4.8509,185.49,185.43,6.56458623]
[1760810933978,6.4009,185.49,185.44,2.78]
[1760810934176,6.4009,185.49,185.43,9.34458623]
[1760810935376,4.8512,185.48,185.43,6.56458623]
[1760810935976,1.55,185.47,185.44,2.78]
[1760810936182,6.4012,185.48,185.43,6.56458623]
[1760810937678,6.4012,185.48,185.44,2.78]
[1760810938178,1.55,185.47,185.44,2.78]
[1760810939575,1.55,185.47,185.42,6.56458623]
[1760810939781,1.55,185.47,185.43,2.78]
[1760810939980,1.55,185.47,185.42,6.56458623]
[1760810940581,6.4012,185.48,185.43,2.78]
[1760810940778,6.4012,185.48,185.43,6.56458623]
[1760810940978,6.4012,185.48,185.44,2.78]
[1760810941181,1.55,185.47,185.44,2.78]
[1760810941382,1.55,185.47,185.42,6.56458623]
[1760810941577,1.55,185.47,185.43,2.78]
[1760810941784,1.55,185.47,185.42,6.56458623]
[1760810941986,3.3377843,185.55,185.42,6.56458623]
[1760810941987,3.3377843,185.51,185.42,6.56458623]
[1760810942182,1.55,185.47,185.38,9.34458623]
[1760810943084,4.8522,185.44,185.38,9.34458623]
[1760810943286,3.3377843,185.48,185.38,6.56458623]
[1760810943684,1.55,185.47,185.38,6.56458623]
[1760810943878,44.72,185.52,185.38,6.56458623]